bitfinex-derivatives/quotes_SOLF0:USTF0_20220106
["timestamp","ask_amount","ask_price","bid_price","bid_amount"]
[1641442613864,31.66479,150.28,150.16,24.0]
[1641442614466,37.62697814,150.32,150.19,24.0]
[1641442614667,41.62697814,150.32,150.19,20.0]
[1641442615666,41.62697814,150.32,150.21,27.66479]
[1641442616067,4.0,150.32,150.21,27.66479]
[1641442616469,66.3429,150.33,150.21,27.66479]
[1641442616668,66.3429,150.33,150.21,34.12479]
[1641442616669,4.0,150.32,150.21,34.12479]
[1641442616868,4.0,150.32,150.22,6.69122766]
[1641442617472,4.0,150.3,150.22,6.69122766]
[1641442617673,31.66479,150.28,150.22,6.69122766]
[1641442617871,27.66479,150.28,150.22,6.69122766]
[1641442618071,34.31394722,150.28,150.22,6.69122766]
[1641442618271,38.31394722,150.28,150.22,6.69122766]
[1641442618471,4.0,150.27,150.22,6.69122766]
[1641442618671,4.0,150.26,150.22,3.46592766]
[1641442618871,38.31394722,150.28,150.22,3.46592766]
[1641442619072,27.66479,150.28,150.17,3.46592766]
[1641442619773,27.66479,150.28,150.17,6.64672649]
[1641442619975,27.66479,150.28,150.17,10.64672649]
[1641442620178,27.66479,150.28,150.17,6.64672649]
[1641442621076,27.66479,150.28,150.17,17.69843099]
[1641442621676,31.66479,150.28,150.17,11.0517045]
[1641442621879,4.0,150.24,150.17,11.0517045]
[1641442622076,4.0,150.24,150.18,0.75257066]
[1641442624081,27.66479,150.28,150.17,0.75257066]
[1641442624583,3.46673773,150.23,150.17,0.75257066]
[1641442624781,3.46673773,150.24,150.17,1.28583293]
[1641442625184,3.46673773,150.24,150.17,0.75257066]
[1641442625382,3.46673773,150.24,150.18,0.75257066]
[1641442626485,3.46673773,150.26,150.18,0.75257066]
[1641442626686,3.46673773,150.26,150.17,1.28583293]
[1641442626884,3.46673773,150.26,150.18,0.75257066]
[1641442627083,55.32958,150.28,150.18,0.75257066]
[1641442627084,3.46673773,150.27,150.18,0.75257066]
[1641442627385,3.46673773,150.26,150.17,0.75257066]
[1641442627785,31.13152773,150.25,150.17,0.75257066]
[1641442628190,3.46673773,150.19,150.17,7.066e-05]
[1641442628387,3.46673773,150.18,150.14,11.05255648]
[1641442628987,3.46673773,150.17,150.09,11.05255648]
[1641442629189,3.46673773,150.16,150.09,11.05255648]
[1641442629587,3.46673773,150.15,150.1,0.75301767]
[1641442629786,27.66479,150.12,150.1,0.75301767]
[1641442630190,27.66479,150.12,150.1,1.767e-05]
[1641442630387,27.66479,150.12,150.09,11.05255648]
[1641442630388,27.66479,150.12,150.06,10.16]
[1641442630791,27.66479,150.14,150.06,10.16]
[1641442630987,27.66479,150.14,150.06,10.69326227]
[1641442631187,27.66479,150.14,150.07,0.75299509]
[1641442631388,27.66479,150.14,150.07,2.08478084]
[1641442632191,27.66479,150.14,150.08,0.75299509]
[1641442632391,27.66479,150.14,150.08,2.08478084]
[1641442633192,27.66479,150.14,150.09,0.75299509]
[1641442633493,27.66479,150.14,150.12,14.11695769]
[1641442633792,31.13152773,150.14,150.12,14.11695769]
[1641442633993,31.13152773,150.14,150.12,0.75305278]
[1641442634192,3.46673773,150.13,150.06,7.8036]
[1641442634392,3.46673773,150.09,150.06,7.8036]
[1641442634796,6.65579553,150.13,150.06,7.8036]
[1641442634797,3.46673773,150.1,150.06,7.8036]
[1641442635201,3.46673773,150.11,150.06,7.8036]
[1641442635403,3.46673773,150.13,150.07,0.75321012]
[1641442635800,27.66479,150.11,150.07,0.75321012]
[1641442636401,3.46673773,150.09,150.07,0.75321012]
[1641442637003,27.66479,150.11,150.07,0.75321012]
[1641442637704,27.66479,150.11,150.08,0.53326227]
[1641442638006,27.66479,150.14,150.1,0.53326227]
[1641442638205,27.66479,150.14,150.11,0.53326227]
[1641442638502,27.66479,150.14,150.12,0.75321012]
[1641442639103,27.66479,150.14,150.1,0.75321012]
[1641442639402,27.66479,150.14,150.07,0.75321012]
[1641442639603,27.66479,150.14,150.09,0.53326227]
[1641442639803,27.66479,150.14,150.05,27.66479]
[1641442640010,27.66479,150.14,150.07,0.53326227]
[1641442640404,27.66479,150.14,150.05,27.66479]
[1641442640606,27.66479,150.14,150.06,7.22198359]
[1641442640805,27.66479,150.14,150.06,6.68872132]
[1641442641207,27.66479,150.14,150.07,0.53326227]
[1641442641412,27.66479,150.14,150.06,6.68872132]
[1641442641807,27.66479,150.14,150.08,0.53326227]
[1641442642011,27.66479,150.14,150.09,0.53326227]
[1641442642610,27.66479,150.14,150.06,6.68872132]
[1641442643410,27.66479,150.14,150.08,0.53326227]
[1641442644110,27.66479,150.14,150.06,6.68872132]
[1641442644510,6.65579553,150.13,150.06,6.68872132]
[1641442644711,27.66479,150.14,150.06,6.68872132]
[1641442645110,4.70539403,150.12,150.11,4.70652596]
[1641442645910,9.50339403,150.12,150.11,4.70652596]
[1641442646114,9.50339403,150.12,150.05,0.53326227]
[1641442646115,4.798,150.12,150.05,0.53326227]
[1641442646313,4.798,150.12,150.06,0.53326227]
[1641442647614,4.70539403,150.13,150.06,0.53326227]
[1641442647813,32.37018403,150.14,150.06,0.53326227]
[1641442648014,32.37018403,150.14,150.04,10.1]
[1641442648217,32.37018403,150.14,150.06,0.53326227]
[1641442648816,32.37018403,150.14,150.04,10.1]
[1641442649016,32.37018403,150.14,150.06,0.53326227]
[1641442649919,32.37018403,150.14,150.04,10.1]
[1641442650520,27.66479,150.14,150.04,66.51555042]
[1641442650922,27.66479,150.14,150.08,0.53326227]
[1641442651119,27.66479,150.14,150.1,0.53326227]
[1641442651324,27.66479,150.14,150.04,27.8412778]
[1641442651525,27.66479,150.14,150.04,31.8412778]
[1641442651823,27.66479,150.14,150.06,4.0]
[1641442653230,27.66479,150.14,150.11,0.53326227]
[1641442654027,27.66479,150.14,150.07,4.0]
[1641442654326,27.66479,150.14,150.11,0.53326227]
[1641442654526,27.66479,150.14,150.07,4.0]
[1641442654728,27.66479,150.14,150.13,4.53326227]
[1641442654927,27.66479,150.14,150.11,4.0]
[1641442655127,37.62697814,150.22,150.07,70.5419]
[1641442655328,37.62697814,150.22,150.21,0.53326227]
[1641442655528,37.62697814,150.22,150.15,0.53326227]
[1641442655729,37.62697814,150.22,150.21,0.53326227]
[1641442655929,29.62697814,150.22,150.21,0.53326227]
[1641442656330,6.64915722,150.28,150.21,0.53326227]
[1641442656529,6.64915722,150.28,150.18,31.66479]
[1641442656728,6.64915722,150.28,150.18,27.66479]
[1641442656929,3.46673773,150.27,150.18,27.66479]
[1641442657134,3.46673773,150.24,150.18,27.66479]
[1641442657329,6.65158973,150.23,150.18,27.66479]
[1641442657530,10.11832746,150.23,150.18,27.66479]
[1641442657732,6.65158973,150.23,150.17,11.05255648]
[1641442657933,27.66479,150.23,150.17,11.58581875]
[1641442658536,27.66479,150.23,150.17,11.05255648]
[1641442658735,27.66479,150.23,150.16,27.66479]
[1641442658935,27.66479,150.23,150.17,0.53326227]
[1641442659336,27.66479,150.23,150.16,27.66479]
[1641442659635,3.46673773,150.21,150.14,11.05255648]
[1641442660136,3.46673773,150.2,150.14,11.05255648]
[1641442660340,3.46673773,150.21,150.14,11.05255648]
[1641442660539,27.66479,150.23,150.13,28.19805227]
[1641442660839,27.66479,150.23,150.13,27.66479]
[1641442661037,27.66479,150.23,150.14,0.53326227]
[1641442661237,27.66479,150.23,150.13,27.66479]
[1641442661437,27.66479,150.23,150.15,0.53326227]
[1641442661638,31.13152773,150.23,150.15,0.53326227]
[1641442661838,31.13152773,150.23,150.13,27.66479]
[1641442662040,27.66479,150.23,150.13,27.66479]
[1641442662239,6.65358129,150.18,150.11,11.05255648]
[1641442662840,10.11899118,150.21,150.12,0.53326227]
[1641442663039,6.65225345,150.21,150.11,0.53326227]
[1641442663346,10.11899118,150.21,150.13,0.53326227]
[1641442663539,6.65225345,150.21,150.13,0.53326227]
[1641442663941,27.66479,150.16,150.08,9.8]
[1641442664340,27.66479,150.16,150.12,0.53326227]
[1641442664541,27.66479,150.16,150.14,14.1146734]
[1641442664742,27.66479,150.16,150.14,7.34e-05]
[1641442665640,27.66479,150.16,150.08,20.85255648]
[1641442667946,27.66479,150.16,150.13,0.53326227]
[1641442668551,27.66479,150.16,150.11,0.53326227]
[1641442668849,27.66479,150.16,150.1,0.53326227]
[1641442669052,27.66479,150.16,150.08,20.85255648]
[1641442669350,27.66479,150.16,150.09,0.53326227]
[1641442669551,27.66479,150.16,150.09,4.0]
[1641442670654,27.66479,150.16,150.1,4.0]
[1641442670856,27.66479,150.16,150.15,0.53326227]
[1641442671256,27.66479,150.18,150.1,4.0]
[1641442671655,27.66479,150.18,150.08,20.85255648]
[1641442671855,66.09623773,150.22,150.11,27.66479]
[1641442672056,6.65247472,150.21,150.11,28.19805227]
[1641442672456,10.11921245,150.21,150.11,0.53326227]
[1641442672657,3.46673773,150.2,150.11,0.53326227]
[1641442672857,27.66479,150.23,150.11,0.53326227]
[1641442672858,6.65380265,150.18,150.11,0.53326227]
[1641442673658,6.65380265,150.18,150.08,9.8]
[1641442673859,6.65380265,150.18,150.12,0.53326227]
[1641442674057,27.66479,150.2,150.12,0.53326227]
[1641442674759,31.13152773,150.2,150.12,0.53326227]
[1641442675058,31.13152773,150.2,150.08,13.8]
[1641442675259,3.46673773,150.16,150.13,1.3305126]
[1641442675460,6.65424541,150.17,150.09,0.53326227]
[1641442676059,34.31903541,150.17,150.09,0.53326227]
[1641442677260,34.31903541,150.17,150.13,0.53326227]
[1641442677459,34.31903541,150.17,150.08,9.8]
[1641442679163,34.31903541,150.17,150.1,0.53326227]
[1641442679361,34.31903541,150.17,150.08,9.8]
[1641442679362,37.78577314,150.17,150.09,0.53326227]
[1641442680265,34.31903541,150.17,150.11,0.53326227]
[1641442680467,37.6459552,150.22,150.09,4.0]
[1641442680663,37.6459552,150.22,150.18,0.53326227]
[1641442680864,37.6459552,150.22,150.16,4.0]
[1641442681263,37.6459552,150.22,150.2,0.53326227]
[1641442681465,37.6459552,150.22,150.19,5.48]
[1641442681864,3.46673773,150.22,150.19,5.48]
[1641442682065,3.46673773,150.21,150.12,0.53326227]
[1641442682265,3.46673773,150.21,150.09,63.10029768]
[1641442682465,37.78355993,150.22,150.13,0.53326227]
[1641442682665,34.3168222,150.22,150.13,0.53326227]
[1641442683066,10.11921245,150.21,150.13,0.53326227]
[1641442683268,6.65247472,150.21,150.13,0.53326227]
[1641442683466,6.65247472,150.21,150.1,4.0]
[1641442683666,27.66479,150.22,150.1,4.0]
[1641442683868,27.66479,150.22,150.14,0.53326227]
[1641442684069,27.66479,150.17,150.14,0.53326227]
[1641442684268,27.66479,150.17,150.13,0.53326227]
[1641442684470,27.66479,150.17,150.09,31.66479]
[1641442684769,27.66479,150.17,150.13,0.53326227]
[1641442685171,27.66479,150.17,150.1,6.68474726]
[1641442685371,23.15943027,150.17,150.14,0.53326227]
[1641442685571,23.15943027,150.17,150.15,0.53326227]
[1641442685774,27.66479,150.22,150.15,0.53326227]
[1641442685972,6.65114732,150.24,150.12,31.66479]
[1641442686174,6.65114732,150.24,150.19,0.53326227]
[1641442686373,37.6459552,150.25,150.22,0.53326227]
[1641442687074,27.66479,150.26,150.22,0.53326227]
[1641442687976,27.66479,150.26,150.21,0.53326227]
[1641442688175,27.66479,150.26,150.19,0.53326227]
[1641442688375,27.66479,150.26,150.17,0.53326227]
[1641442688575,27.66479,150.26,150.14,17.73368628]
[1641442688776,6.65092614,150.24,150.14,17.73368628]
[1641442688976,10.11766387,150.24,150.14,17.73368628]
[1641442689179,6.65092614,150.24,150.16,6.68474726]
[1641442689376,10.11766387,150.24,150.16,6.68474726]
[1641442689576,3.46673773,150.23,150.16,6.68474726]
[1641442689876,6.65092614,150.24,150.14,7.21800953]
[1641442690077,27.66479,150.2,150.14,7.21800953]
[1641442690478,27.66479,150.2,150.15,0.53326227]
[1641442690678,27.66479,150.2,150.14,7.21800953]
[1641442690979,27.66479,150.2,150.11,62.4558]
[1641442691180,27.66479,150.2,150.12,0.53326227]
[1641442691379,27.66479,150.2,150.13,0.53326227]
[1641442691578,27.66479,150.2,150.14,0.53326227]
[1641442691780,91.96409,150.26,150.13,5.36]
[1641442691978,6.65004156,150.26,150.19,27.66479]
[1641442692479,6.65004156,150.26,150.19,28.19805227]
[1641442693278,6.65004156,150.26,150.15,0.53326227]
[1641442693678,6.65004156,150.26,150.17,0.53326227]
[1641442693879,6.65004156,150.26,150.14,63.4001]
[1641442694079,6.65004156,150.26,150.19,0.53326227]
[1641442695381,6.65004156,150.26,150.15,10.66399377]
[1641442695578,6.65004156,150.26,150.2,0.53326227]
[1641442695782,6.65004156,150.26,150.16,14.06843648]
[1641442695980,27.66479,150.25,150.16,14.06843648]
[1641442696381,27.66479,150.25,150.21,0.53326227]
[1641442696583,27.66479,150.25,150.19,0.53326227]
[1641442697283,27.66479,150.25,150.2,0.53326227]
[1641442697483,27.66479,150.25,150.22,0.53326227]
[1641442697883,27.66479,150.25,150.16,14.06843648]
[1641442698083,27.66479,150.25,150.19,0.53326227]
[1641442698887,27.66479,150.25,150.18,14.06843648]
[1641442699085,27.66479,150.25,150.21,0.53326227]
[1641442699284,27.66479,150.25,150.18,14.06843648]
[1641442699885,27.66479,150.25,150.18,18.06843648]
[1641442700085,6.65004156,150.26,150.23,0.53326227]
[1641442700288,6.65004156,150.26,150.24,0.53326227]
[1641442700887,6.65004156,150.26,150.25,0.53326227]
[1641442701286,27.66479,150.28,150.25,0.53326227]
[1641442701490,27.66479,150.3,150.21,4.0]
[1641442701686,27.66479,150.3,150.28,0.53326227]
[1641442701907,27.66479,150.3,150.29,0.53326227]
[1641442702090,27.66479,150.33,150.29,0.53326227]
[1641442702290,27.66479,150.33,150.3,0.53326227]
[1641442702488,27.66479,150.35,150.3,0.53326227]
[1641442702892,27.66479,150.35,150.32,0.53326227]
[1641442703089,37.6459552,150.37,150.34,0.53326227]
[1641442703288,37.6459552,150.37,150.36,0.53326227]
[1641442703489,37.6459552,150.41,150.36,0.53326227]
[1641442703888,56.41555042,150.45,150.4,0.53326227]
[1641442704087,56.41555042,150.45,150.37,27.66479]
[1641442704289,56.41555042,150.45,150.41,0.53326227]
[1641442704490,56.41555042,150.45,150.37,27.66479]
[1641442704690,51.89555042,150.45,150.35,28.19805227]
[1641442704893,10.10794643,150.46,150.35,27.66479]
[1641442705091,6.64275276,150.43,150.35,0.53326227]
[1641442705295,3.46673773,150.42,150.35,0.53326227]
[1641442705493,6.64275276,150.43,150.36,0.53326227]
[1641442706092,31.13152773,150.42,150.32,66.2313]
[1641442706294,31.13152773,150.42,150.36,0.53326227]
[1641442706491,31.13152773,150.42,150.35,0.53326227]
[1641442706693,31.13152773,150.42,150.31,96.34599]
[1641442706892,31.13152773,150.42,150.33,0.53326227]
[1641442707093,12.06787954,150.41,150.31,96.34599]
[1641442707293,12.06787954,150.41,150.34,0.53326227]
[1641442707497,3.46673773,150.4,150.34,0.53326227]
[1641442707894,3.46673773,150.39,150.31,68.6812]
[1641442708099,3.46673773,150.39,150.29,14.06843648]
[1641442708100,27.66479,150.37,150.29,14.06843648]
[1641442708296,12.06787954,150.41,150.36,0.53326227]
[1641442708496,12.06787954,150.41,150.29,4.0]
[1641442708695,12.06787954,150.41,150.36,0.53326227]
[1641442708998,12.06787954,150.41,150.34,0.53326227]
[1641442709194,12.06787954,150.41,150.36,0.53326227]
[1641442709394,12.06787954,150.43,150.36,0.53326227]
[1641442709798,12.06787954,150.43,150.35,0.53326227]
[1641442710001,12.06787954,150.43,150.3,18.06843648]
[1641442710197,34.30798405,150.42,150.36,0.53326227]
[1641442710798,34.30798405,150.42,150.31,4.0]
[1641442711104,34.30798405,150.42,150.37,0.53326227]
[1641442711499,34.30798405,150.42,150.32,4.0]
[1641442711699,34.30798405,150.42,150.37,0.53326227]
[1641442712099,27.66479,150.39,150.29,42.26648875]
[1641442712401,6.64473903,150.38,150.3,0.53326227]
[1641442712801,6.64473903,150.38,150.33,0.53326227]
[1641442713000,27.66479,150.39,150.31,0.53326227]
[1641442713201,27.66479,150.39,150.3,0.53326227]
[1641442713402,27.66479,150.39,150.36,0.53326227]
[1641442713606,27.66479,150.39,150.33,0.53326227]
[1641442713801,27.66479,150.39,150.29,14.06843648]
[1641442714002,27.66479,150.39,150.3,4.0]
[1641442714202,6.64385609,150.4,150.37,0.53326227]
[1641442714401,27.66479,150.42,150.38,0.53326227]
[1641442714602,94.20609,150.44,150.31,70.9697]
[1641442714803,94.20609,150.44,150.37,0.53326227]
[1641442715001,27.66479,150.44,150.31,70.9697]
[1641442715203,27.66479,150.44,150.33,0.53326227]
[1641442715402,27.66479,150.44,150.31,66.9697]
[1641442715602,27.66479,150.44,150.33,0.53326227]
[1641442715804,4.68460682,150.41,150.36,4.68460682]
[1641442716407,4.68460682,150.41,150.37,0.53326227]
[1641442716604,4.68460682,150.41,150.36,4.68460682]
[1641442716805,4.68460682,150.42,150.39,0.53326227]
[1641442717104,4.68460682,150.42,150.41,0.53326227]
[1641442717304,4.68460682,150.42,150.37,4.68460682]
[1641442717505,4.68460682,150.42,150.4,0.53326227]
[1641442717707,4.68460682,150.42,150.41,6.01483628]
[1641442718806,3.35437736,150.43,150.41,6.01483628]
[1641442719006,3.35437736,150.43,150.4,4.68460682]
[1641442719205,6.82111509,150.43,150.4,4.68460682]
[1641442719706,3.46673773,150.41,150.36,14.06843648]
[1641442719906,3.46673773,150.39,150.36,14.06843648]
[1641442720308,6.6449598,150.38,150.36,3.648e-05]
[1641442720507,6.6449598,150.38,150.3,0.53326227]
[1641442720508,6.6449598,150.38,150.32,8.00078137]
[1641442721109,34.48590509,150.4,150.32,8.00078137]
[1641442721308,3.35437736,150.37,150.32,8.00074489]
[1641442721508,3.35437736,150.37,150.29,8.00074489]
[1641442721709,3.35437736,150.37,150.32,0.53326227]
[1641442721909,3.35437736,150.37,150.31,0.53326227]
[1641442722108,3.35437736,150.37,150.29,8.00074489]
[1641442722312,3.35437736,150.37,150.33,0.53326227]
[1641442722609,3.35437736,150.37,150.29,12.00074489]
[1641442722811,3.35437736,150.37,150.31,4.0]
[1641442723012,3.35437736,150.37,150.36,0.53326227]
[1641442723210,3.35437736,150.38,150.36,0.53326227]
[1641442723610,3.35437736,150.38,150.37,0.53326227]
[1641442723810,3.35437736,150.38,150.36,0.53326227]
[1641442724011,3.46673773,150.43,150.37,1.33022946]
[1641442724012,3.46673773,150.42,150.37,1.33022946]
[1641442724212,27.66479,150.41,150.37,1.33022946]
[1641442724811,27.66479,150.41,150.38,0.53326227]
[1641442725015,3.35437736,150.4,150.35,1.33022946]
[1641442725613,3.35437736,150.4,150.39,0.53326227]
[1641442725816,27.66479,150.41,150.39,0.53326227]
[1641442726614,27.66479,150.41,150.35,1.33022946]
[1641442726816,27.66479,150.41,150.4,0.53326227]
[1641442727114,27.66479,150.43,150.4,0.53326227]
[1641442727814,27.66479,150.43,150.34,8.01684839]
[1641442728017,27.66479,150.43,150.39,0.53326227]
[1641442728215,31.13152773,150.43,150.34,8.01684839]
[1641442728417,3.46673773,150.42,150.34,8.55011066]
[1641442728616,6.83138147,150.42,150.34,6.68661893]
[1641442729015,6.83138147,150.42,150.35,0.53326227]
[1641442729315,6.83138147,150.42,150.34,6.68661893]
[1641442729516,3.36464374,150.41,150.34,8.01954524]
[1641442729715,6.83138147,150.41,150.34,8.01954524]
[1641442730115,13.47501687,150.41,150.34,8.01954524]
[1641442730416,3.46673773,150.38,150.34,8.01954524]
[1641442730620,27.66479,150.38,150.34,8.01954524]
[1641442730815,27.66479,150.38,150.34,1.33292631]
[1641442731416,27.66479,150.38,150.29,6.68661893]
[1641442731615,3.46673773,150.36,150.29,8.01931898]
[1641442731815,3.36464374,150.37,150.3,0.53326227]
[1641442732019,3.36464374,150.37,150.31,0.53326227]
[1641442732215,3.36464374,150.37,150.29,8.01931898]
[1641442732416,3.36464374,150.37,150.33,0.53326227]
[1641442732815,3.36464374,150.37,150.28,31.66479]
[1641442732816,3.36464374,150.37,150.28,27.66479]
[1641442733017,3.36464374,150.37,150.3,0.53326227]
[1641442733218,3.36464374,150.37,150.28,27.66479]
[1641442733418,3.36464374,150.37,150.34,0.53326227]
[1641442733617,3.36464374,150.37,150.29,4.0]
[1641442733818,3.36464374,150.37,150.29,10.68661893]
[1641442734021,3.36464374,150.37,150.29,6.68661893]
[1641442734417,3.36464374,150.37,150.33,0.53326227]
[1641442734917,6.83138147,150.37,150.3,0.53326227]
[1641442735118,6.83138147,150.37,150.29,6.68661893]
[1641442735317,3.46673773,150.36,150.29,6.68661893]
[1641442735517,6.6449598,150.38,150.29,6.68661893]
[1641442735720,3.46673773,150.35,150.29,6.68661893]
[1641442735918,10.11324333,150.34,150.29,6.68661893]
[1641442736121,3.46673773,150.32,150.24,56.74854409]
[1641442736318,3.46673773,150.32,150.24,0.53326227]
[1641442736521,27.66479,150.3,150.24,0.53326227]
[1641442736721,27.66479,150.3,150.2,68.48836227]
[1641442736920,27.66479,150.3,150.2,67.9551]
[1641442737220,31.13152773,150.3,150.22,0.53326227]
[1641442737425,31.13152773,150.3,150.2,67.9551]
[1641442737619,31.13152773,150.3,150.22,0.53326227]
[1641442737820,3.46673773,150.29,150.22,0.53326227]
[1641442738020,3.46673773,150.29,150.21,17.73522075]
[1641442738420,3.46673773,150.28,150.21,17.73522075]
[1641442738620,27.66479,150.25,150.21,6.68683111]
[1641442738821,3.46673773,150.27,150.21,6.68683111]
[1641442739024,3.46673773,150.26,150.21,6.68683111]
[1641442739821,3.46673773,150.29,150.21,7.22009338]
[1641442740026,27.66479,150.3,150.22,0.53326227]
[1641442740323,27.66479,150.3,150.18,75.52783111]
[1641442740522,27.66479,150.3,150.18,71.52783111]
[1641442740723,27.66479,150.3,150.22,0.53326227]
[1641442740923,27.66479,150.3,150.19,17.73612286]
[1641442741124,31.13152773,150.3,150.19,17.73612286]
[1641442741522,31.13152773,150.3,150.22,0.53326227]
[1641442742928,10.11545287,150.29,150.22,0.53326227]
[1641442743127,10.11545287,150.29,150.19,17.73612286]
[1641442743328,3.46673773,150.22,150.19,17.73612286]
[1641442743525,3.46673773,150.21,150.19,2.286e-05]
[1641442743728,6.65181096,150.22,150.19,2.286e-05]
[1641442743926,3.46673773,150.2,150.19,2.286e-05]
[1641442744527,3.46673773,150.2,150.15,56.21528182]
[1641442744729,27.66479,150.2,150.15,56.21528182]
[1641442744928,27.66479,150.2,150.12,0.53326227]
[1641442745128,27.66479,150.2,150.13,0.53326227]
[1641442745328,27.66479,150.2,150.14,0.53326227]
[1641442745931,27.66479,150.2,150.1,71.76328716]
[1641442746128,27.66479,150.23,150.1,71.76328716]
[1641442746328,27.66479,150.23,150.2,0.53326227]
[1641442746529,3.46673773,150.27,150.12,6.64893617]
[1641442746730,34.31483156,150.26,150.15,0.53326227]
[1641442746929,34.31483156,150.26,150.13,27.66479]
[1641442747129,3.46673773,150.24,150.15,0.53326227]
[1641442747330,3.46673773,150.22,150.13,83.88007182]
[1641442747530,3.46673773,150.21,150.14,0.53326227]
[1641442747730,3.46673773,150.21,150.13,83.88007182]
[1641442747930,3.46673773,150.19,150.13,56.21528182]
[1641442748131,6.65070497,150.25,150.13,56.21528182]
[1641442748132,3.46673773,150.18,150.13,56.21528182]
[1641442748330,3.46673773,150.19,150.11,56.21528182]
[1641442748533,3.46673773,150.21,150.11,56.21528182]
[1641442748733,27.66479,150.14,150.11,56.21528182]
[1641442749133,27.66479,150.14,150.07,82.19654943]
[1641442749332,9e-05,150.14,150.07,81.66328716]
[1641442749532,3.46673773,150.18,150.07,81.66328716]
[1641442749733,6.65269601,150.2,150.07,81.66328716]
[1641442749934,6.65468823,150.16,150.07,81.66328716]
[1641442750433,10.12142596,150.16,150.07,9.9]
[1641442750635,37.78621596,150.16,150.07,9.9]
[1641442751036,3.46673773,150.12,150.07,9.9]
[1641442751235,3.46673773,150.11,150.07,9.9]
[1641442751435,6.65712479,150.1,150.07,9.9]
[1641442751634,10.12386252,150.1,150.07,9.9]
[1641442752235,3.46673773,150.09,150.04,56.21528182]
[1641442752635,27.66479,150.08,150.01,0.53326227]
[1641442753036,3.46673773,150.07,149.99,83.88007182]
[1641442753238,3.46673773,150.06,149.99,83.88007182]
[1641442753436,3.46673773,150.05,149.99,83.88007182]
[1641442753640,3.46673773,150.04,149.99,56.21528182]
[1641442753837,3.46673773,150.05,149.97,83.88007182]
[1641442754036,3.46673773,150.05,149.97,99.43157745]
[1641442754238,3.46673773,150.05,149.97,99.96483972]
[1641442754636,3.46673773,150.04,149.97,99.96483972]
[1641442755040,3.46673773,150.04,149.97,99.43157745]
[1641442755338,6.66022845,150.03,149.97,27.66479]
[1641442756243,27.66479,150.08,149.97,27.66479]
[1641442756440,27.66479,150.08,150.0,0.53326227]
[1641442756641,27.66479,150.08,149.97,27.66479]
[1641442757044,27.66479,150.08,150.01,0.53326227]
[1641442757643,31.13152773,150.08,150.01,0.53326227]
[1641442757844,31.13152773,150.08,150.0,0.53326227]
[1641442758044,27.66479,150.08,149.99,0.53326227]
[1641442758749,27.66479,150.08,149.98,56.21528182]
[1641442759146,27.66479,150.08,150.02,0.53326227]
[1641442759545,27.66479,150.08,149.99,56.21528182]
[1641442759746,27.66479,150.08,150.03,0.53326227]
[1641442759945,6.65734638,150.1,149.99,60.21528182]
[1641442760146,6.65734638,150.1,150.02,0.53326227]
[1641442760345,6.65734638,150.1,150.03,0.53326227]
[1641442760647,10.12430572,150.09,150.01,56.21528182]
[1641442761048,3.46673773,150.08,150.02,56.21528182]
[1641442761449,3.46673773,150.06,150.02,56.21528182]
[1641442761646,3.46673773,150.05,150.02,56.21528182]
[1641442761847,3.46673773,150.06,150.02,56.21528182]
[1641442762046,3.46673773,150.05,150.02,56.21528182]
[1641442762247,6.65756799,150.09,150.02,54.12698182]
[1641442762447,6.66045025,150.03,149.95,0.53326227]
[1641442762847,6.66045025,150.03,149.97,0.53326227]
[1641442763047,6.66045025,150.03,149.95,4.0]
[1641442763247,27.66479,150.05,150.01,0.53326227]
[1641442763649,27.66479,150.05,149.97,4.0]
[1641442763848,27.66479,150.05,150.02,0.53326227]
[1641442764050,27.66479,150.05,149.93,31.66479]
[1641442764249,27.66479,150.05,149.97,0.53326227]
[1641442764448,27.66479,150.05,149.94,6.68312999]
[1641442764449,31.13152773,150.05,149.94,6.68312999]
[1641442764650,6.66045025,150.03,149.94,7.21639226]
[1641442764849,6.66045025,150.03,149.95,0.53326227]
[1641442765050,6.66045025,150.03,149.94,6.68312999]
[1641442765451,6.66045025,150.03,149.96,0.53326227]
[1641442765654,6.66045025,150.03,149.95,0.53326227]
[1641442765851,6.66045025,150.03,149.94,6.68312999]
[1641442766353,31.13152773,150.05,149.94,6.68312999]
[1641442766556,6.66000666,150.04,149.94,6.68312999]
[1641442766854,6.66000666,150.04,149.97,0.53326227]
[1641442767055,6.66000666,150.04,150.0,14.12651617]
[1641442768457,27.66479,150.05,150.02,14.12651617]
[1641442769061,27.66479,150.05,150.04,14.12651617]
[1641442769657,6.65845457,150.07,150.04,14.12651617]
[1641442769857,27.66479,150.11,150.04,14.12651617]
[1641442769858,34.32169321,150.11,150.04,14.12651617]
[1641442770063,34.32169321,150.11,150.06,0.53326227]